[Event "*** Titled Tuesday Blitz"]
[Site "Chess.com"]
[Date "2021.02.16"]
[Round "6"]
[White "WPWPWP-2015"]
[Black "Rodalquilar"]
[Result "0-1"]
[WhiteElo "2487"]
[BlackElo "2669"]
[TimeControl "180+1"]
[EndTime "11:07:10 PST"]
[Termination "Rodalquilar won by resignation"]

1. e4 {[%clk 0:03:00.4]} 1... d5 {[%clk 0:02:59.8]} 2. exd5 {[%clk 0:02:59.6]}
2... Qxd5 {[%clk 0:03:00.7]} 3. Nc3 {[%clk 0:02:59.6]} 3... Qa5 {[%clk
0:03:00.9]} 4. Rb1 {[%clk 0:03:00]} 4... e5 {[%clk 0:02:45.9]} 5. b4 {[%clk
0:02:56.7]} 5... Bxb4 {[%clk 0:02:43.8]} 6. Nb5 {[%clk 0:02:53.2]} 6... Na6
{[%clk 0:02:38.6]} 7. a3 {[%clk 0:02:49.1]} 7... Bc5 {[%clk 0:02:34.5]} 8. Qe2
{[%clk 0:02:42.7]} 8... Nf6 {[%clk 0:02:10.1]} 9. Qxe5+ {[%clk 0:02:34.5]} 9...
Be6 {[%clk 0:02:10.3]} 10. Nd4 {[%clk 0:02:13.4]} 10... O-O-O {[%clk 0:01:45.3]}
11. Rb5 {[%clk 0:01:51.4]} 11... Qa4 {[%clk 0:01:45.2]} 12. Nxe6 {[%clk
0:00:23.1]} 12... Rhe8 {[%clk 0:01:41.7]} 13. Ne2 {[%clk 0:00:21.2]} 13... Qxb5
{[%clk 0:01:13.3]} 14. N2d4 {[%clk 0:00:20.9]} 14... Qb6 {[%clk 0:00:55.2]} 15.
Bxa6 {[%clk 0:00:19.8]} 15... Bxd4 {[%clk 0:00:48.7]} 16. Qb5 {[%clk 0:00:18.7]}
16... Rxe6+ {[%clk 0:00:47.5]} 17. Kd1 {[%clk 0:00:16.7]} 17... bxa6 {[%clk
0:00:45]} 18. Qa4 {[%clk 0:00:13.9]} 18... Bxf2 {[%clk 0:00:43]} 19. Rf1 {[%clk
0:00:11.1]} 19... Ne4 {[%clk 0:00:42.6]} 20. Bb2 {[%clk 0:00:08.6]} 20... Qxb2
{[%clk 0:00:38.3]} 0-1

[Event "*** Titled Tuesday Blitz"]
[Site "Chess.com"]
[Date "2021.02.16"]
[Round "6"]
[White "VALPARAISO37"]
[Black "lelya96"]
[Result "0-1"]
[WhiteElo "2460"]
[BlackElo "2253"]
[TimeControl "180+1"]
[EndTime "11:07:12 PST"]
[Termination "lelya96 won by checkmate"]

1. d4 {[%clk 0:03:00.9]} 1... d5 {[%clk 0:02:49.8]} 2. c4 {[%clk 0:02:51.9]}
2... c6 {[%clk 0:02:47.6]} 3. Nc3 {[%clk 0:02:51.6]} 3... Nf6 {[%clk 0:02:46.2]}
4. e3 {[%clk 0:02:51.3]} 4... Bg4 {[%clk 0:02:43.8]} 5. f3 {[%clk 0:02:51.2]}
5... Bh5 {[%clk 0:02:42]} 6. g4 {[%clk 0:02:51.2]} 6... Bg6 {[%clk 0:02:41.6]}
7. h4 {[%clk 0:02:51.5]} 7... h6 {[%clk 0:02:17.6]} 8. Nge2 {[%clk 0:02:50.3]}
8... e6 {[%clk 0:02:12.1]} 9. Nf4 {[%clk 0:02:50.2]} 9... Bd6 {[%clk 0:02:00.2]}
10. Nxg6 {[%clk 0:02:49.1]} 10... fxg6 {[%clk 0:02:00.3]} 11. Qc2 {[%clk
0:02:40.1]} 11... Bg3+ {[%clk 0:01:55.2]} 12. Kd1 {[%clk 0:02:40.7]} 12... Qe7
{[%clk 0:01:34]} 13. Qxg6+ {[%clk 0:02:39.3]} 13... Kd8 {[%clk 0:01:26.1]} 14.
Kc2 {[%clk 0:02:37.3]} 14... Nbd7 {[%clk 0:01:20.9]} 15. Bd3 {[%clk 0:02:34.8]}
15... Nf8 {[%clk 0:01:14]} 16. h5 {[%clk 0:02:29.4]} 16... Nxg6 {[%clk
0:01:12.3]} 17. hxg6 {[%clk 0:02:29.2]} 17... h5 {[%clk 0:01:06.9]} 18. c5
{[%clk 0:02:25.8]} 18... h4 {[%clk 0:01:05.5]} 19. g5 {[%clk 0:02:22.9]} 19...
Nd7 {[%clk 0:01:01.4]} 20. f4 {[%clk 0:02:22.6]} 20... Kc7 {[%clk 0:00:58.3]}
21. Bd2 {[%clk 0:02:22.1]} 21... b6 {[%clk 0:00:58]} 22. cxb6+ {[%clk
0:02:20.5]} 22... axb6 {[%clk 0:00:57.5]} 23. Rac1 {[%clk 0:02:20]} 23... Kb7
{[%clk 0:00:55.6]} 24. a3 {[%clk 0:02:18.9]} 24... c5 {[%clk 0:00:55]} 25. Bb5
{[%clk 0:02:15.6]} 25... cxd4 {[%clk 0:00:53]} 26. exd4 {[%clk 0:02:15.7]} 26...
Rac8 {[%clk 0:00:48.1]} 27. Kb3 {[%clk 0:02:14.6]} 27... Qd6 {[%clk 0:00:46]}
28. Rcf1 {[%clk 0:02:12.1]} 28... Nb8 {[%clk 0:00:43.4]} 29. Ne2 {[%clk
0:02:08]} 29... Nc6 {[%clk 0:00:42.1]} 30. f5 {[%clk 0:02:02.9]} 30... exf5
{[%clk 0:00:39.8]} 31. Rxf5 {[%clk 0:02:00.6]} 31... Rc7 {[%clk 0:00:39.3]} 32.
Bc3 {[%clk 0:01:50.5]} 32... Na5+ {[%clk 0:00:31.8]} 33. Ka2 {[%clk 0:01:49]}
33... Nc4 {[%clk 0:00:27.2]} 34. Nxg3 {[%clk 0:01:42.3]} 34... Qxg3 {[%clk
0:00:26.6]} 35. Rxd5 {[%clk 0:01:42.6]} 35... Rhc8 {[%clk 0:00:24.9]} 36. Rf1
{[%clk 0:01:36.6]} 36... Nxa3 {[%clk 0:00:22.2]} 37. Rf7 {[%clk 0:01:29.4]}
37... Nxb5 {[%clk 0:00:20.9]} 38. Rxb5 {[%clk 0:01:29.4]} 38... Qd3 {[%clk
0:00:17.6]} 39. Rb4 {[%clk 0:01:28.5]} 39... Qxg6 {[%clk 0:00:17.2]} 40. Rf4
{[%clk 0:01:22.9]} 40... Ra8+ {[%clk 0:00:17.1]} 41. Kb3 {[%clk 0:01:22]} 41...
Qe6+ {[%clk 0:00:16.6]} 42. Kc2 {[%clk 0:01:21.6]} 42... Qe2+ {[%clk 0:00:16.7]}
43. Kb3 {[%clk 0:01:21.8]} 43... Qd1# {[%clk 0:00:16.5]} 0-1

[Event "*** Titled Tuesday Blitz"]
[Site "Chess.com"]
[Date "2021.02.16"]
[Round "6"]
[White "MoreChessJulia"]
[Black "Aya5ian"]
[Result "0-1"]
[WhiteElo "2134"]
[BlackElo "2319"]
[TimeControl "180+1"]
[EndTime "11:07:17 PST"]
[Termination "Aya5ian won by resignation"]

1. d4 {[%clk 0:03:00.9]} 1... Nf6 {[%clk 0:02:59.9]} 2. Nc3 {[%clk 0:02:57.3]}
2... c5 {[%clk 0:02:57]} 3. d5 {[%clk 0:02:56.3]} 3... e6 {[%clk 0:02:57.2]} 4.
e4 {[%clk 0:02:56]} 4... exd5 {[%clk 0:02:57]} 5. e5 {[%clk 0:02:54.1]} 5... Ne4
{[%clk 0:02:52.1]} 6. Nxd5 {[%clk 0:02:51.9]} 6... Be7 {[%clk 0:02:07.9]} 7. c3
{[%clk 0:02:46.8]} 7... Nc6 {[%clk 0:02:02.2]} 8. f4 {[%clk 0:02:42.5]} 8... d6
{[%clk 0:01:47.3]} 9. Nxe7 {[%clk 0:02:40.5]} 9... Nxe7 {[%clk 0:01:40.9]} 10.
Bd3 {[%clk 0:02:37.2]} 10... d5 {[%clk 0:01:35.4]} 11. Nf3 {[%clk 0:02:35.2]}
11... Nf5 {[%clk 0:01:32.3]} 12. Bxe4 {[%clk 0:02:32.6]} 12... dxe4 {[%clk
0:01:30.8]} 13. Qxd8+ {[%clk 0:02:33]} 13... Kxd8 {[%clk 0:01:31.7]} 14. Ng5
{[%clk 0:02:32.7]} 14... Ke7 {[%clk 0:01:29.3]} 15. Ke2 {[%clk 0:02:30]} 15...
h6 {[%clk 0:01:27.7]} 16. Nxe4 {[%clk 0:02:28.5]} 16... Bd7 {[%clk 0:01:25]} 17.
Nxc5 {[%clk 0:02:26.9]} 17... Bc6 {[%clk 0:01:22.6]} 18. Kf2 {[%clk 0:02:27.3]}
18... Rad8 {[%clk 0:01:15.6]} 19. Be3 {[%clk 0:02:25.9]} 19... Nxe3 {[%clk
0:01:12.8]} 20. Kxe3 {[%clk 0:02:24.4]} 20... g6 {[%clk 0:01:04.5]} 21. Rhg1
{[%clk 0:02:22.9]} 21... Rd5 {[%clk 0:01:01.9]} 22. b4 {[%clk 0:02:21]} 22...
Rhd8 {[%clk 0:00:59]} 23. g3 {[%clk 0:02:19.4]} 23... b6 {[%clk 0:00:53.5]} 24.
Nb3 {[%clk 0:02:13.3]} 24... Rd3+ {[%clk 0:00:52.3]} 25. Ke2 {[%clk 0:02:13.8]}
25... Bb5 {[%clk 0:00:45.9]} 26. a4 {[%clk 0:02:09.6]} 26... Bc4 {[%clk
0:00:39]} 27. Nd4 {[%clk 0:02:03.9]} 27... R3xd4+ {[%clk 0:00:37]} 28. Ke3
{[%clk 0:02:02.6]} 28... Rd3+ {[%clk 0:00:36.1]} 29. Kf2 {[%clk 0:02:02.2]}
29... Rxc3 {[%clk 0:00:34.4]} 30. Rgc1 {[%clk 0:02:01.3]} 30... Rd2+ {[%clk
0:00:33.1]} 31. Ke1 {[%clk 0:02:00.1]} 31... Rdc2 {[%clk 0:00:29.1]} 32. Rxc2
{[%clk 0:01:58.5]} 32... Rxc2 {[%clk 0:00:30]} 33. h4 {[%clk 0:01:55.7]} 33...
Re2+ {[%clk 0:00:29.9]} 34. Kd1 {[%clk 0:01:54.1]} 34... Rb2 {[%clk 0:00:30.1]}
35. b5 {[%clk 0:01:52]} 35... Bd3 {[%clk 0:00:28.5]} 36. Rc1 {[%clk 0:01:50.1]}
36... Rb1 {[%clk 0:00:28.7]} 37. Rxb1 {[%clk 0:01:48.8]} 37... Bxb1 {[%clk
0:00:29.6]} 38. Kd2 {[%clk 0:01:48.6]} 38... Ke6 {[%clk 0:00:29.5]} 39. Kc3
{[%clk 0:01:49.1]} 39... Kd5 {[%clk 0:00:28.2]} 40. Kb4 {[%clk 0:01:49]} 40...
Bc2 {[%clk 0:00:28]} 41. a5 {[%clk 0:01:47.2]} 41... bxa5+ {[%clk 0:00:28.6]}
42. Kxa5 {[%clk 0:01:46.2]} 42... Bd3 {[%clk 0:00:28.7]} 43. Ka6 {[%clk
0:01:46.7]} 43... Ke4 {[%clk 0:00:27.6]} 44. Kxa7 {[%clk 0:01:46.7]} 44... Bxb5
{[%clk 0:00:27.1]} 45. Kb6 {[%clk 0:01:47.1]} 45... Bc4 {[%clk 0:00:25.9]} 46.
Kc5 {[%clk 0:01:47.2]} 46... Be6 {[%clk 0:00:25.9]} 47. Kd6 {[%clk 0:01:47.7]}
47... Kf3 {[%clk 0:00:25.9]} 48. Ke7 {[%clk 0:01:47.9]} 48... Kxg3 {[%clk
0:00:25.9]} 49. Kf6 {[%clk 0:01:47.9]} 49... Kxf4 {[%clk 0:00:25.6]} 50. Kg7
{[%clk 0:01:47.4]} 50... h5 {[%clk 0:00:26]} 51. Kf6 {[%clk 0:01:46.2]} 51...
Kg4 {[%clk 0:00:26.9]} 0-1

[Event "*** Titled Tuesday Blitz"]
[Site "Chess.com"]
[Date "2021.02.16"]
[Round "6"]
[White "ChristopherYoo"]
[Black "Deepweb2020"]
[Result "1-0"]
[WhiteElo "2889"]
[BlackElo "2529"]
[TimeControl "180+1"]
[EndTime "11:07:19 PST"]
[Termination "ChristopherYoo won by resignation"]

1. d4 {[%clk 0:03:00.9]} 1... Nf6 {[%clk 0:02:57.3]} 2. Nf3 {[%clk 0:03:00.5]}
2... e6 {[%clk 0:02:56.2]} 3. c4 {[%clk 0:03:00.6]} 3... Bb4+ {[%clk 0:02:55.6]}
4. Bd2 {[%clk 0:03:00]} 4... Qe7 {[%clk 0:02:52.7]} 5. e3 {[%clk 0:02:59.8]}
5... b6 {[%clk 0:02:48.3]} 6. a3 {[%clk 0:02:57.6]} 6... Bxd2+ {[%clk
0:02:48.2]} 7. Nbxd2 {[%clk 0:02:58.5]} 7... Bb7 {[%clk 0:02:48.6]} 8. Bd3
{[%clk 0:02:59]} 8... a5 {[%clk 0:02:49]} 9. O-O {[%clk 0:02:58.7]} 9... d6
{[%clk 0:02:47]} 10. e4 {[%clk 0:02:53.1]} 10... e5 {[%clk 0:02:47]} 11. Re1
{[%clk 0:02:41.8]} 11... O-O {[%clk 0:02:34.9]} 12. dxe5 {[%clk 0:02:41.1]}
12... dxe5 {[%clk 0:02:34.9]} 13. Nf1 {[%clk 0:02:41.4]} 13... Rd8 {[%clk
0:02:33.6]} 14. Qc2 {[%clk 0:02:41.2]} 14... Nc6 {[%clk 0:02:23.8]} 15. Ne3
{[%clk 0:02:40.8]} 15... Nd4 {[%clk 0:02:23.4]} 16. Nxd4 {[%clk 0:02:39.4]}
16... Rxd4 {[%clk 0:02:24.3]} 17. Nf5 {[%clk 0:02:38.5]} 17... Qc5 {[%clk
0:02:14.9]} 18. Nxd4 {[%clk 0:02:36.2]} 18... Qxd4 {[%clk 0:02:13.5]} 19. Rad1
{[%clk 0:02:24.2]} 19... a4 {[%clk 0:02:13.4]} 20. Bf1 {[%clk 0:02:08.4]} 20...
Qc5 {[%clk 0:02:02.8]} 21. Re3 {[%clk 0:01:59.6]} 21... Ne8 {[%clk 0:01:58.1]}
22. Qc3 {[%clk 0:01:23.4]} 22... Nd6 {[%clk 0:01:53.6]} 23. Rde1 {[%clk
0:01:23.2]} 23... Re8 {[%clk 0:01:40.8]} 24. Qb4 {[%clk 0:01:11.7]} 24... Qc6
{[%clk 0:01:40.9]} 25. f3 {[%clk 0:01:07.4]} 25... f6 {[%clk 0:01:26.5]} 26. Rc1
{[%clk 0:01:06.9]} 26... Ba6 {[%clk 0:01:13.5]} 27. c5 {[%clk 0:01:05.4]} 27...
Bxf1 {[%clk 0:01:13.6]} 28. Kxf1 {[%clk 0:01:05.4]} 28... Nb7 {[%clk 0:01:04.1]}
29. Qc4+ {[%clk 0:01:04]} 29... Kh8 {[%clk 0:01:01.7]} 30. cxb6 {[%clk
0:01:03.6]} 30... Qxb6 {[%clk 0:01:02.6]} 31. Re2 {[%clk 0:01:02]} 31... Nd6
{[%clk 0:00:27.2]} 32. Qxc7 {[%clk 0:00:59.5]} 32... Qa6 {[%clk 0:00:28.1]} 33.
Qc6 {[%clk 0:00:58.4]} 33... Qd3 {[%clk 0:00:25.9]} 34. Qd5 {[%clk 0:00:53.1]}
34... Qa6 {[%clk 0:00:23.6]} 35. Rc6 {[%clk 0:00:51.3]} 1-0

[Event "*** Titled Tuesday Blitz"]
[Site "Chess.com"]
[Date "2021.02.16"]
[Round "6"]
[White "DanilNajdin"]
[Black "vovachesss"]
[Result "0-1"]
[WhiteElo "2478"]
[BlackElo "2663"]
[TimeControl "180+1"]
[EndTime "11:07:19 PST"]
[Termination "vovachesss won by resignation"]

1. e4 {[%clk 0:03:00.9]} 1... e5 {[%clk 0:02:57.7]} 2. Nf3 {[%clk 0:03:00.2]}
2... d5 {[%clk 0:02:58.4]} 3. Nxe5 {[%clk 0:02:46.3]} 3... Bd6 {[%clk
0:02:58.4]} 4. d4 {[%clk 0:02:43.2]} 4... dxe4 {[%clk 0:02:58.7]} 5. Bc4 {[%clk
0:02:42.6]} 5... Bxe5 {[%clk 0:02:58.8]} 6. dxe5 {[%clk 0:02:41.6]} 6... Qxd1+
{[%clk 0:02:58.8]} 7. Kxd1 {[%clk 0:02:42]} 7... Nc6 {[%clk 0:02:59.5]} 8. Re1
{[%clk 0:02:32.2]} 8... Bg4+ {[%clk 0:02:55]} 9. Be2 {[%clk 0:02:27.3]} 9...
O-O-O+ {[%clk 0:02:55]} 10. Nd2 {[%clk 0:02:23.8]} 10... Nxe5 {[%clk 0:02:55.9]}
11. Bxg4+ {[%clk 0:02:08.9]} 11... Nxg4 {[%clk 0:02:56]} 12. Ke2 {[%clk
0:02:09.3]} 12... f5 {[%clk 0:02:55]} 13. h3 {[%clk 0:02:04.8]} 13... Ne5 {[%clk
0:02:35.6]} 14. b3 {[%clk 0:02:04.5]} 14... Nf6 {[%clk 0:02:33.6]} 15. Bb2
{[%clk 0:02:02.6]} 15... Rhe8 {[%clk 0:02:34.2]} 16. Rad1 {[%clk 0:02:01.6]}
16... Nd5 {[%clk 0:02:22.4]} 17. g3 {[%clk 0:01:55.5]} 17... g5 {[%clk
0:02:01.4]} 18. a3 {[%clk 0:01:53.4]} 18... h5 {[%clk 0:01:39.6]} 19. Nc4 {[%clk
0:01:35.6]} 19... Nxc4 {[%clk 0:01:38]} 20. bxc4 {[%clk 0:01:36.5]} 20... Nb6
{[%clk 0:01:38.7]} 21. Bf6 {[%clk 0:01:33.2]} 21... Rxd1 {[%clk 0:01:26.9]} 22.
Rxd1 {[%clk 0:01:34.1]} 22... Nxc4 {[%clk 0:01:26.3]} 23. Bxg5 {[%clk
0:01:33.1]} 23... Nxa3 {[%clk 0:01:26.3]} 24. Ke3 {[%clk 0:01:26.9]} 24... Nxc2+
{[%clk 0:01:23.7]} 25. Kf4 {[%clk 0:01:27]} 25... e3 {[%clk 0:01:23.7]} 26. fxe3
{[%clk 0:01:19.9]} 26... Nxe3 {[%clk 0:01:24.6]} 27. Rd3 {[%clk 0:01:14.8]}
27... Nc4 {[%clk 0:01:12.7]} 28. Kxf5 {[%clk 0:01:10.8]} 28... b5 {[%clk
0:01:10]} 29. Bf4 {[%clk 0:01:08.9]} 29... a5 {[%clk 0:01:04.3]} 30. g4 {[%clk
0:00:55.9]} 30... hxg4 {[%clk 0:01:03.7]} 31. hxg4 {[%clk 0:00:56.8]} 31... a4
{[%clk 0:01:03.8]} 32. g5 {[%clk 0:00:56.6]} 32... a3 {[%clk 0:01:01.3]} 33. g6
{[%clk 0:00:55.3]} 33... a2 {[%clk 0:00:58.7]} 34. Rd1 {[%clk 0:00:55]} 34... b4
{[%clk 0:00:58.7]} 35. Bg5 {[%clk 0:00:48.1]} 35... Ne3+ {[%clk 0:00:55.9]} 36.
Bxe3 {[%clk 0:00:41.9]} 36... Rxe3 {[%clk 0:00:56.8]} 37. Rg1 {[%clk 0:00:41.6]}
37... b3 {[%clk 0:00:52.2]} 38. g7 {[%clk 0:00:41.1]} 38... Re8 {[%clk
0:00:53.1]} 39. Kf6 {[%clk 0:00:39.3]} 39... Rg8 {[%clk 0:00:45.9]} 0-1

[Event "*** Titled Tuesday Blitz"]
[Site "Chess.com"]
[Date "2021.02.16"]
[Round "6"]
[White "SimplyDevina"]
[Black "Loy_Konstantin"]
[Result "0-1"]
[WhiteElo "2237"]
[BlackElo "2380"]
[TimeControl "180+1"]
[EndTime "11:07:19 PST"]
[Termination "Loy_Konstantin won by resignation"]

1. d4 {[%clk 0:03:00.9]} 1... Nf6 {[%clk 0:02:59.4]} 2. c4 {[%clk 0:02:57.1]}
2... c5 {[%clk 0:02:59.7]} 3. d5 {[%clk 0:02:56.4]} 3... b5 {[%clk 0:02:59.9]}
4. cxb5 {[%clk 0:02:57.3]} 4... a6 {[%clk 0:03:00.3]} 5. bxa6 {[%clk 0:02:58.2]}
5... Bxa6 {[%clk 0:03:00.3]} 6. Nc3 {[%clk 0:02:57]} 6... g6 {[%clk 0:03:00.4]}
7. g3 {[%clk 0:02:57.4]} 7... d6 {[%clk 0:03:00.1]} 8. Bg2 {[%clk 0:02:57.2]}
8... Bg7 {[%clk 0:03:00.7]} 9. Nf3 {[%clk 0:02:57.3]} 9... Nbd7 {[%clk
0:03:01.1]} 10. O-O {[%clk 0:02:57.8]} 10... O-O {[%clk 0:02:55]} 11. Qc2 {[%clk
0:02:57.9]} 11... Qa5 {[%clk 0:02:54.3]} 12. Rd1 {[%clk 0:02:54]} 12... Nb6
{[%clk 0:02:54.1]} 13. e4 {[%clk 0:02:38.3]} 13... Nc4 {[%clk 0:02:52.5]} 14.
Nd2 {[%clk 0:02:22]} 14... Nd7 {[%clk 0:02:45.5]} 15. Bf1 {[%clk 0:01:59.5]}
15... Nde5 {[%clk 0:02:34]} 16. Nxc4 {[%clk 0:01:52.8]} 16... Bxc4 {[%clk
0:02:23]} 17. Bf4 {[%clk 0:01:26.5]} 17... Nf3+ {[%clk 0:02:12.1]} 18. Kg2
{[%clk 0:01:10.3]} 18... Bxf1+ {[%clk 0:02:11.7]} 19. Rxf1 {[%clk 0:01:01.9]}
19... Nd4 {[%clk 0:02:11]} 20. Qd2 {[%clk 0:00:45]} 20... Rfb8 {[%clk 0:02:10]}
21. Rab1 {[%clk 0:00:39.8]} 21... Nb5 {[%clk 0:02:06.3]} 22. Nxb5 {[%clk
0:00:38.2]} 22... Rxb5 {[%clk 0:02:05.9]} 23. Qxa5 {[%clk 0:00:37.5]} 23...
Raxa5 {[%clk 0:02:06.5]} 24. a3 {[%clk 0:00:25.7]} 24... Bxb2 {[%clk 0:01:56.6]}
25. Bc1 {[%clk 0:00:13.8]} 25... Bxc1 {[%clk 0:01:50]} 26. Rxb5 {[%clk
0:00:12.1]} 26... Rxb5 {[%clk 0:01:47.5]} 27. Rxc1 {[%clk 0:00:12.4]} 27... Ra5
{[%clk 0:01:41.4]} 28. Rc3 {[%clk 0:00:12.3]} 28... Ra4 {[%clk 0:01:41.4]} 29.
Kf3 {[%clk 0:00:11.7]} 29... f5 {[%clk 0:01:41.1]} 30. exf5 {[%clk 0:00:08.6]}
30... gxf5 {[%clk 0:01:42]} 31. Ke3 {[%clk 0:00:07.4]} 31... Kf7 {[%clk
0:01:41]} 32. f3 {[%clk 0:00:07.4]} 32... Kf6 {[%clk 0:01:40.5]} 33. Rd3 {[%clk
0:00:06.6]} 33... c4 {[%clk 0:01:32.9]} 34. Rc3 {[%clk 0:00:06.3]} 34... Ke5
{[%clk 0:01:32.8]} 35. f4+ {[%clk 0:00:02.2]} 35... Kxd5 {[%clk 0:01:32.9]} 36.
h3 {[%clk 0:00:02.5]} 36... Kc5 {[%clk 0:01:30.9]} 37. g4 {[%clk 0:00:02.3]}
37... fxg4 {[%clk 0:01:28.1]} 38. hxg4 {[%clk 0:00:03.2]} 38... d5 {[%clk
0:01:28.6]} 39. Kf3 {[%clk 0:00:02.6]} 39... d4 {[%clk 0:01:28.8]} 40. Rc1
{[%clk 0:00:03]} 40... Rxa3+ {[%clk 0:01:28.9]} 41. Ke4 {[%clk 0:00:03.9]} 41...
Re3+ {[%clk 0:01:27.3]} 42. Kf5 {[%clk 0:00:04.2]} 42... d3 {[%clk 0:01:27.4]}
43. g5 {[%clk 0:00:03.7]} 43... d2 {[%clk 0:01:26.3]} 44. Ra1 {[%clk 0:00:03.8]}
0-1

[Event "*** Titled Tuesday Blitz"]
[Site "Chess.com"]
[Date "2021.02.16"]
[Round "6"]
[White "Kaslask"]
[Black "McCarthyStone"]
[Result "1-0"]
[WhiteElo "2262"]
[BlackElo "2367"]
[TimeControl "180+1"]
[EndTime "11:07:20 PST"]
[Termination "Kaslask won by resignation"]

1. d4 {[%clk 0:03:00.9]} 1... d5 {[%clk 0:02:58.6]} 2. c4 {[%clk 0:03:00.5]}
2... Nc6 {[%clk 0:02:59]} 3. Nc3 {[%clk 0:02:58.5]} 3... Nf6 {[%clk 0:02:51.7]}
4. Nf3 {[%clk 0:02:56.1]} 4... Bg4 {[%clk 0:02:49.5]} 5. Qa4 {[%clk 0:02:53.8]}
5... Bxf3 {[%clk 0:02:45.9]} 6. gxf3 {[%clk 0:02:52.8]} 6... e6 {[%clk
0:02:46.4]} 7. e3 {[%clk 0:02:48.6]} 7... dxc4 {[%clk 0:02:44.7]} 8. Bxc4 {[%clk
0:02:45.1]} 8... Be7 {[%clk 0:02:41.6]} 9. f4 {[%clk 0:02:38]} 9... a6 {[%clk
0:02:37]} 10. Qc2 {[%clk 0:02:24]} 10... Nb4 {[%clk 0:02:29.9]} 11. Qb1 {[%clk
0:02:21.2]} 11... c5 {[%clk 0:02:26.8]} 12. a3 {[%clk 0:02:18.3]} 12... Nbd5
{[%clk 0:02:26.9]} 13. dxc5 {[%clk 0:02:06.5]} 13... Bxc5 {[%clk 0:02:23.4]} 14.
Bd2 {[%clk 0:02:02]} 14... Nxf4 {[%clk 0:02:19.5]} 15. exf4 {[%clk 0:01:40.7]}
15... Qd4 {[%clk 0:02:17.7]} 16. Qd3 {[%clk 0:01:33.6]} 16... Qxf2+ {[%clk
0:02:17.3]} 17. Kd1 {[%clk 0:01:33.8]} 17... Rd8 {[%clk 0:02:14.7]} 18. Qe2
{[%clk 0:01:33.2]} 18... Qxf4 {[%clk 0:02:11.9]} 19. Bd3 {[%clk 0:01:24.7]}
19... Qd4 {[%clk 0:01:44.7]} 20. Kc2 {[%clk 0:01:24.1]} 20... O-O {[%clk
0:01:38.8]} 21. Rad1 {[%clk 0:01:22.4]} 21... Rd7 {[%clk 0:01:17.6]} 22. Bg5
{[%clk 0:01:19.4]} 22... Qf2 {[%clk 0:00:26.8]} 23. Qxf2 {[%clk 0:01:17.6]}
23... Bxf2 {[%clk 0:00:27.7]} 24. Bxf6 {[%clk 0:01:16.5]} 24... gxf6 {[%clk
0:00:27.2]} 25. Bxh7+ {[%clk 0:01:15.3]} 25... Kxh7 {[%clk 0:00:28.1]} 26. Rxd7
{[%clk 0:01:14.4]} 26... b5 {[%clk 0:00:28.9]} 27. Rf1 {[%clk 0:01:10.9]} 27...
Bh4 {[%clk 0:00:26.3]} 28. Ne4 {[%clk 0:01:08.6]} 28... f5 {[%clk 0:00:24.8]}
29. Nd6 {[%clk 0:01:07.3]} 29... Kg6 {[%clk 0:00:24.2]} 30. Ra7 {[%clk
0:01:05.3]} 30... Bf6 {[%clk 0:00:19]} 31. Rxa6 {[%clk 0:01:04.1]} 31... Rh8
{[%clk 0:00:19.5]} 32. Rf2 {[%clk 0:01:02.8]} 32... Rh4 {[%clk 0:00:19.8]} 33.
Nxb5 {[%clk 0:01:01.5]} 33... e5 {[%clk 0:00:16.2]} 34. Nc3 {[%clk 0:00:58.5]}
34... Kg5 {[%clk 0:00:16]} 35. Rg2+ {[%clk 0:00:57]} 35... Rg4 {[%clk
0:00:13.9]} 36. Rxg4+ {[%clk 0:00:56.8]} 36... fxg4 {[%clk 0:00:14.8]} 1-0

[Event "*** Titled Tuesday Blitz"]
[Site "Chess.com"]
[Date "2021.02.16"]
[Round "6"]
[White "night_player"]
[Black "northridgehawk"]
[Result "0-1"]
[WhiteElo "2163"]
[BlackElo "2340"]
[TimeControl "180+1"]
[EndTime "11:07:20 PST"]
[Termination "northridgehawk won on time"]

1. e4 {[%clk 0:02:14.7]} 1... c5 {[%clk 0:02:58.3]} 2. c3 {[%clk 0:02:14.3]}
2... Nf6 {[%clk 0:02:54.3]} 3. e5 {[%clk 0:02:12.7]} 3... Nd5 {[%clk 0:02:54.6]}
4. Bc4 {[%clk 0:02:12.3]} 4... e6 {[%clk 0:02:52.2]} 5. Nf3 {[%clk 0:02:11.5]}
5... Nc6 {[%clk 0:02:52.1]} 6. O-O {[%clk 0:02:11.2]} 6... Be7 {[%clk
0:02:51.4]} 7. Re1 {[%clk 0:02:10.7]} 7... O-O {[%clk 0:02:50.8]} 8. d4 {[%clk
0:02:07.2]} 8... cxd4 {[%clk 0:02:49.2]} 9. cxd4 {[%clk 0:02:08.1]} 9... d6
{[%clk 0:02:49.4]} 10. exd6 {[%clk 0:02:06.2]} 10... Bxd6 {[%clk 0:02:50.3]} 11.
Nc3 {[%clk 0:02:05.5]} 11... Nce7 {[%clk 0:02:49.8]} 12. Ne4 {[%clk 0:02:04]}
12... Bc7 {[%clk 0:02:48.6]} 13. a3 {[%clk 0:02:02.3]} 13... Bd7 {[%clk
0:02:48.4]} 14. Bg5 {[%clk 0:01:59.7]} 14... Bc6 {[%clk 0:02:45.6]} 15. Rc1
{[%clk 0:01:57]} 15... Rc8 {[%clk 0:02:38]} 16. Bd3 {[%clk 0:01:46.4]} 16... Bf4
{[%clk 0:02:36.6]} 17. Rc2 {[%clk 0:01:30.4]} 17... h6 {[%clk 0:02:24.6]} 18.
Bh4 {[%clk 0:01:02.9]} 18... Bb8 {[%clk 0:02:23.8]} 19. Bg3 {[%clk 0:00:59.1]}
19... Nf4 {[%clk 0:02:19.2]} 20. Ne5 {[%clk 0:00:53.9]} 20... Nxd3 {[%clk
0:02:14.8]} 21. Qxd3 {[%clk 0:00:43]} 21... Bd5 {[%clk 0:02:05]} 22. Rxc8 {[%clk
0:00:25.9]} 22... Qxc8 {[%clk 0:02:05.9]} 23. Nc3 {[%clk 0:00:20.4]} 23... Rd8
{[%clk 0:01:57.8]} 24. Qe3 {[%clk 0:00:20.3]} 24... Nf5 {[%clk 0:01:54.8]} 25.
Qd2 {[%clk 0:00:16]} 25... Bb3 {[%clk 0:01:50.8]} 26. Nf3 {[%clk 0:00:13.8]}
26... Bxg3 {[%clk 0:01:42.5]} 27. hxg3 {[%clk 0:00:14.7]} 27... Qd7 {[%clk
0:01:41.7]} 28. Re4 {[%clk 0:00:09.5]} 28... Qc6 {[%clk 0:01:37]} 29. g4 {[%clk
0:00:08.8]} 29... Nd6 {[%clk 0:01:36.1]} 30. Re1 {[%clk 0:00:09.3]} 30... Nc4
{[%clk 0:01:35.8]} 31. Qe2 {[%clk 0:00:08.2]} 31... Nb6 {[%clk 0:01:27.5]} 32.
Qe4 {[%clk 0:00:06.8]} 32... Qxe4 {[%clk 0:01:24.1]} 33. Rxe4 {[%clk 0:00:07.2]}
33... Nc4 {[%clk 0:01:20.4]} 34. Re2 {[%clk 0:00:07.2]} 34... a6 {[%clk
0:01:20.7]} 35. Ne5 {[%clk 0:00:06.8]} 35... Rxd4 {[%clk 0:01:17]} 36. Nxc4
{[%clk 0:00:04.4]} 36... Bxc4 {[%clk 0:01:17.9]} 37. Re1 {[%clk 0:00:03.4]}
37... Rxg4 {[%clk 0:01:17.2]} 38. f3 {[%clk 0:00:03.1]} 38... Rd4 {[%clk
0:01:17]} 0-1